[Event "Titled Tuesday Blitz September 13 Early 2022"]
[White "Kosakowski, Jakub"]
[Black "Wachinger, Guenther"]
[WhiteFideId "1185080"]
[BlackFideId "4604261"]
[WhiteElo "2453"]
[BlackElo "2212"]
[Result "1-0"]
[Round "01"]
[TimeControl "180+1"]
[Date "2022.09.13"]
[WhiteClock "0:00:53"]
[BlackClock "0:00:05"]

1. e4 {[%clk 0:02:57]}  c5 {[%clk 0:03:00]} 2. Nf3 {[%clk 0:02:46]}  d6 {[%clk 0:02:59]} 3. c3 {[%clk 0:02:46]}  Nf6 {[%clk 0:02:57]} 4. Be2 {[%clk 0:02:46]}  g6 {[%clk 0:02:41]} 5. O-O {[%clk 0:02:45]}  Bg7 {[%clk 0:02:41]} 6. Bb5+ {[%clk 0:02:45]}  Bd7 {[%clk 0:02:41]} 7. Bxd7+ {[%clk 0:02:45]}  Nbxd7 {[%clk 0:02:38]} 8. Re1 {[%clk 0:02:44]}  O-O {[%clk 0:02:34]} 9. d4 {[%clk 0:02:44]}  b5 {[%clk 0:02:35]} 10. h3 {[%clk 0:02:42]}  Qc7 {[%clk 0:02:20]} 11. e5 {[%clk 0:02:27]}  Nd5 {[%clk 0:01:57]} 12. Nbd2 {[%clk 0:02:25]}  dxe5 {[%clk 0:01:49]} 13. dxe5 {[%clk 0:02:24]}  e6 {[%clk 0:01:40]} 14. Qe2 {[%clk 0:02:18]}  c4 {[%clk 0:01:31]} 15. a4 {[%clk 0:02:12]}  a6 {[%clk 0:01:30]} 16. axb5 {[%clk 0:01:57]}  axb5 {[%clk 0:01:31]} 17. Rxa8 {[%clk 0:01:57]}  Rxa8 {[%clk 0:01:30]} 18. Nd4 {[%clk 0:01:58]}  Ra5 {[%clk 0:01:10]} 19. N2f3 {[%clk 0:01:55]}  Nc5 {[%clk 0:01:07]} 20. Bg5 {[%clk 0:01:24]}  Nd3 {[%clk 0:01:02]} 21. Rd1 {[%clk 0:01:21]}  Nxe5 {[%clk 0:01:00]} 22. Nxe5 {[%clk 0:01:20]}  Bxe5 {[%clk 0:01:01]} 23. Kh1 {[%clk 0:01:06]}  Bf4 {[%clk 0:00:35]} 24. Nxe6 {[%clk 0:00:59]}  fxe6 {[%clk 0:00:07]} 25. Qxe6+ {[%clk 0:00:59]}  Kh8 {[%clk 0:00:07]} 26. Bf6+ {[%clk 0:00:51]}  Nxf6 {[%clk 0:00:07]} 27. Qxf6+ {[%clk 0:00:52]}  Kg8 {[%clk 0:00:05]} 28. Rd8+ {[%clk 0:00:53]} 1-0


[Site "https://www.chess.com"]

[Event "Titled Tuesday Blitz September 13 Early 2022"]
[White "Neiksans, Arturs"]
[Black "Pajeken, Jakob Leon"]
[WhiteFideId "11601388"]
[BlackFideId "12942839"]
[WhiteElo "2901"]
[BlackElo "2502"]
[Result "1-0"]
[Round "01"]
[TimeControl "180+1"]
[Date "2022.09.13"]
[WhiteClock "0:00:05"]
[BlackClock "0:00:01"]

1. e4 {[%clk 0:03:00]}  e5 {[%clk 0:02:53]} 2. Nf3 {[%clk 0:03:00]}  Nc6 {[%clk 0:02:52]} 3. Bb5 {[%clk 0:03:00]}  a6 {[%clk 0:02:50]} 4. Ba4 {[%clk 0:03:00]}  Nf6 {[%clk 0:02:49]} 5. O-O {[%clk 0:03:00]}  Be7 {[%clk 0:02:50]} 6. d3 {[%clk 0:02:59]}  b5 {[%clk 0:02:50]} 7. Bb3 {[%clk 0:02:59]}  d6 {[%clk 0:02:50]} 8. Bd2 {[%clk 0:02:58]}  O-O {[%clk 0:02:49]} 9. h3 {[%clk 0:02:58]}  Bb7 {[%clk 0:02:46]} 10. Re1 {[%clk 0:02:52]}  Nd7 {[%clk 0:02:42]} 11. a3 {[%clk 0:02:50]}  Nc5 {[%clk 0:02:35]} 12. Ba2 {[%clk 0:02:45]}  Ne6 {[%clk 0:02:34]} 13. Nc3 {[%clk 0:02:43]}  Ncd4 {[%clk 0:02:32]} 14. Nxd4 {[%clk 0:02:38]}  Nxd4 {[%clk 0:02:31]} 15. Nd5 {[%clk 0:02:34]}  Bxd5 {[%clk 0:02:28]} 16. Bxd5 {[%clk 0:02:31]}  c6 {[%clk 0:02:28]} 17. Ba2 {[%clk 0:02:30]}  Bg5 {[%clk 0:02:26]} 18. Bc3 {[%clk 0:02:20]}  Ne6 {[%clk 0:02:21]} 19. Qg4 {[%clk 0:02:17]}  Qf6 {[%clk 0:02:16]} 20. g3 {[%clk 0:02:13]}  g6 {[%clk 0:01:59]} 21. f4 {[%clk 0:02:04]}  Bh6 {[%clk 0:01:59]} 22. Rf1 {[%clk 0:02:03]}  Qe7 {[%clk 0:01:49]} 23. Bxe6 {[%clk 0:01:43]}  fxe6 {[%clk 0:01:45]} 24. fxe5 {[%clk 0:01:43]}  dxe5 {[%clk 0:01:45]} 25. Bxe5 {[%clk 0:01:40]}  Bg7 {[%clk 0:01:30]} 26. Bxg7 {[%clk 0:01:36]}  Kxg7 {[%clk 0:01:31]} 27. Kg2 {[%clk 0:01:33]}  e5 {[%clk 0:01:29]} 28. Qe2 {[%clk 0:01:21]}  Qc5 {[%clk 0:01:25]} 29. Qd2 {[%clk 0:01:16]}  a5 {[%clk 0:01:23]} 30. Qc3 {[%clk 0:01:06]}  Qxc3 {[%clk 0:01:06]} 31. bxc3 {[%clk 0:01:06]}  a4 {[%clk 0:01:07]} 32. Rab1 {[%clk 0:01:03]}  Rfd8 {[%clk 0:01:01]} 33. Kf3 {[%clk 0:01:00]}  Rd7 {[%clk 0:00:55]} 34. Ke3 {[%clk 0:01:00]}  Rad8 {[%clk 0:00:56]} 35. Rb4 {[%clk 0:00:57]}  h6 {[%clk 0:00:48]} 36. h4 {[%clk 0:00:54]}  h5 {[%clk 0:00:47]} 37. d4 {[%clk 0:00:44]}  c5 {[%clk 0:00:39]} 38. dxc5 {[%clk 0:00:22]}  Rd2 {[%clk 0:00:39]} 39. Rf2 {[%clk 0:00:22]}  Rd1 {[%clk 0:00:35]} 40. Rxb5 {[%clk 0:00:22]}  Rg1 {[%clk 0:00:35]} 41. Kf3 {[%clk 0:00:19]}  Rf8+ {[%clk 0:00:31]} 42. Ke2 {[%clk 0:00:19]}  Rc8 {[%clk 0:00:30]} 43. Rb7+ {[%clk 0:00:18]}  Kg8 {[%clk 0:00:28]} 44. Rff7 {[%clk 0:00:17]}  Rxg3 {[%clk 0:00:28]} 45. Rg7+ {[%clk 0:00:16]}  Kf8 {[%clk 0:00:27]} 46. Rh7 {[%clk 0:00:15]}  Kg8 {[%clk 0:00:25]} 47. Rbg7+ {[%clk 0:00:13]}  Kf8 {[%clk 0:00:25]} 48. Kd2 {[%clk 0:00:11]}  Rxc5 {[%clk 0:00:10]} 49. Ra7 {[%clk 0:00:11]}  Rg2+ {[%clk 0:00:09]} 50. Kd1 {[%clk 0:00:10]}  Kg8 {[%clk 0:00:09]} 51. Rhe7 {[%clk 0:00:09]}  Rc8 {[%clk 0:00:07]} 52. Rxe5 {[%clk 0:00:08]}  Rf8 {[%clk 0:00:06]} 53. Kc1 {[%clk 0:00:06]}  Rc8 {[%clk 0:00:04]} 54. Re6 {[%clk 0:00:05]}  Rg4 {[%clk 0:00:03]} 55. e5 {[%clk 0:00:04]}  g5 {[%clk 0:00:03]} 56. Rg6+ {[%clk 0:00:04]}  Kh8 {[%clk 0:00:02]} 57. hxg5 {[%clk 0:00:03]}  h4 {[%clk 0:00:02]} 58. Rh6+ {[%clk 0:00:02]}  Kg8 {[%clk 0:00:03]} 59. g6 {[%clk 0:00:03]}  Rxc3 {[%clk 0:00:03]} 60. g7 {[%clk 0:00:02]}  Rxg7 {[%clk 0:00:01]} 61. Ra8+ {[%clk 0:00:01]}  Kf7 {[%clk 0:00:01]} 62. Rxh4 {[%clk 0:00:02]}  Ke7 {[%clk 0:00:02]} 63. Kb2 {[%clk 0:00:02]}  Rc7 {[%clk 0:00:01]} 64. Rhxa4 {[%clk 0:00:02]}  Rb7+ {[%clk 0:00:02]} 65. Kc1 {[%clk 0:00:01]}  Ke6 {[%clk 0:00:03]} 66. Kd2 {[%clk 0:00:02]}  Rbd7+ {[%clk 0:00:03]} 67. Kc1 {[%clk 0:00:02]}  Rg1+ {[%clk 0:00:03]} 68. Kb2 {[%clk 0:00:03]}  Rb7+ {[%clk 0:00:04]} 69. Ka2 {[%clk 0:00:03]}  Rg2 {[%clk 0:00:03]} 70. R8a6+ {[%clk 0:00:04]}  Kxe5 {[%clk 0:00:03]} 71. Rc4 {[%clk 0:00:04]}  Kd5 {[%clk 0:00:03]} 72. Rac6 {[%clk 0:00:05]}  Rb5 {[%clk 0:00:02]} 73. Rc7 {[%clk 0:00:05]}  Rb6 {[%clk 0:00:03]} 74. a4 {[%clk 0:00:05]}  Rg3 {[%clk 0:00:02]} 75. R7c5+ {[%clk 0:00:06]}  Kd6 {[%clk 0:00:02]} 76. a5 {[%clk 0:00:06]}  Ra6 {[%clk 0:00:03]} 77. Kb2 {[%clk 0:00:07]}  Rg8 {[%clk 0:00:02]} 78. Rb5 {[%clk 0:00:07]}  Rga8 {[%clk 0:00:02]} 79. Rcc5 {[%clk 0:00:06]}  Rc6 {[%clk 0:00:02]} 80. Rxc6+ {[%clk 0:00:04]}  Kxc6 {[%clk 0:00:03]} 81. Rh5 {[%clk 0:00:04]}  Re8 {[%clk 0:00:03]} 82. Kb3 {[%clk 0:00:04]}  Re4 {[%clk 0:00:03]} 83. c4 {[%clk 0:00:04]}  Kb7 {[%clk 0:00:03]} 84. Kb4 {[%clk 0:00:04]}  Re1 {[%clk 0:00:03]} 85. Rh7+ {[%clk 0:00:03]}  Ka6 {[%clk 0:00:04]} 86. Rh6+ {[%clk 0:00:03]}  Kb7 {[%clk 0:00:03]} 87. a6+ {[%clk 0:00:04]}  Ka7 {[%clk 0:00:04]} 88. Kb5 {[%clk 0:00:04]}  Rb1+ {[%clk 0:00:04]} 89. Kc5 {[%clk 0:00:04]}  Rg1 {[%clk 0:00:04]} 90. Rf6 {[%clk 0:00:04]}  Rg5+ {[%clk 0:00:04]} 91. Kb4 {[%clk 0:00:05]}  Rg1 {[%clk 0:00:04]} 92. c5 {[%clk 0:00:05]}  Rb1+ {[%clk 0:00:03]} 93. Kc4 {[%clk 0:00:06]}  Rc1+ {[%clk 0:00:04]} 94. Kd5 {[%clk 0:00:05]}  Rd1+ {[%clk 0:00:04]} 95. Kc6 {[%clk 0:00:05]}  Kxa6 {[%clk 0:00:05]} 96. Rf7 {[%clk 0:00:06]}  Rh1 {[%clk 0:00:04]} 97. Kc7 {[%clk 0:00:06]}  Ka7 {[%clk 0:00:04]} 98. c6 {[%clk 0:00:06]}  Rh8 {[%clk 0:00:04]} 99. Rd7 {[%clk 0:00:05]}  Ka6 {[%clk 0:00:03]} 100. Rd8 {[%clk 0:00:05]}  Rh7+ {[%clk 0:00:02]} 101. Kd6 {[%clk 0:00:05]}  Ka7 {[%clk 0:00:01]} 102. Rd7+ {[%clk 0:00:05]} 1-0


[Site "https://www.chess.com"]

[Event "Titled Tuesday Blitz September 13 Early 2022"]
[White "Ozates, Tuna"]
[Black "Mitrabha, Guha"]
[WhiteFideId "6354521"]
[BlackFideId "5057000"]
[WhiteElo "2531"]
[BlackElo "2966"]
[Result "1-0"]
[Round "01"]
[TimeControl "180+1"]
[Date "2022.09.13"]
[WhiteClock "0:00:07"]
[BlackClock "0:00:04"]

1. e4 {[%clk 0:02:57]}  c6 {[%clk 0:02:56]} 2. Nf3 {[%clk 0:02:56]}  d5 {[%clk 0:02:56]} 3. d3 {[%clk 0:02:56]}  Nd7 {[%clk 0:02:56]} 4. Nc3 {[%clk 0:02:54]}  Ngf6 {[%clk 0:02:55]} 5. e5 {[%clk 0:02:49]}  d4 {[%clk 0:02:55]} 6. exf6 {[%clk 0:02:47]}  dxc3 {[%clk 0:02:55]} 7. bxc3 {[%clk 0:02:45]}  exf6 {[%clk 0:02:49]} 8. g3 {[%clk 0:02:40]}  Bd6 {[%clk 0:02:49]} 9. Bg2 {[%clk 0:02:40]}  O-O {[%clk 0:02:49]} 10. O-O {[%clk 0:02:41]}  Nb6 {[%clk 0:02:48]} 11. c4 {[%clk 0:02:38]}  Bg4 {[%clk 0:02:47]} 12. Be3 {[%clk 0:02:38]}  Bc7 {[%clk 0:02:45]} 13. Rb1 {[%clk 0:02:36]}  Rb8 {[%clk 0:02:45]} 14. Qd2 {[%clk 0:02:34]}  Re8 {[%clk 0:02:45]} 15. h3 {[%clk 0:02:32]}  Bh5 {[%clk 0:02:44]} 16. g4 {[%clk 0:02:32]}  Bg6 {[%clk 0:02:43]} 17. Nh4 {[%clk 0:02:33]}  Qd6 {[%clk 0:02:41]} 18. f4 {[%clk 0:02:30]}  Nd7 {[%clk 0:02:35]} 19. Bxa7 {[%clk 0:02:16]}  Ra8 {[%clk 0:02:31]} 20. Be3 {[%clk 0:02:04]}  Rxa2 {[%clk 0:02:29]} 21. Rxb7 {[%clk 0:01:59]}  Nc5 {[%clk 0:02:26]} 22. Bxc5 {[%clk 0:01:53]}  Qxc5+ {[%clk 0:02:26]} 23. Qf2 {[%clk 0:01:54]}  Qd6 {[%clk 0:01:53]} 24. c5 {[%clk 0:01:47]}  Qd7 {[%clk 0:01:53]} 25. f5 {[%clk 0:01:21]}  Bh2+ {[%clk 0:01:51]} 26. Kxh2 {[%clk 0:01:21]}  Qxb7 {[%clk 0:01:52]} 27. fxg6 {[%clk 0:01:22]}  hxg6 {[%clk 0:01:52]} 28. Nf3 {[%clk 0:01:15]}  Qb4 {[%clk 0:01:44]} 29. Re1 {[%clk 0:01:03]}  Rea8 {[%clk 0:01:03]} 30. Re4 {[%clk 0:01:01]}  Qb1 {[%clk 0:01:00]} 31. Nd4 {[%clk 0:00:58]}  Qc1 {[%clk 0:00:45]} 32. Re2 {[%clk 0:00:48]}  Rc8 {[%clk 0:00:32]} 33. Nxc6 {[%clk 0:00:47]}  Kf8 {[%clk 0:00:32]} 34. Qd4 {[%clk 0:00:41]}  Rca8 {[%clk 0:00:28]} 35. Qd6+ {[%clk 0:00:40]}  Kg8 {[%clk 0:00:28]} 36. Ne7+ {[%clk 0:00:40]}  Kh7 {[%clk 0:00:28]} 37. Bxa8 {[%clk 0:00:37]}  Rxa8 {[%clk 0:00:29]} 38. Qg3 {[%clk 0:00:34]}  g5 {[%clk 0:00:28]} 39. Qe3 {[%clk 0:00:32]}  Qa1 {[%clk 0:00:19]} 40. c6 {[%clk 0:00:29]}  Qa5 {[%clk 0:00:15]} 41. Qe4+ {[%clk 0:00:26]}  g6 {[%clk 0:00:15]} 42. Qd5 {[%clk 0:00:25]}  Qc7+ {[%clk 0:00:14]} 43. Kg2 {[%clk 0:00:24]}  Kg7 {[%clk 0:00:14]} 44. Qd7 {[%clk 0:00:24]}  Qf4 {[%clk 0:00:14]} 45. Nd5 {[%clk 0:00:19]}  Qc1 {[%clk 0:00:14]} 46. c7 {[%clk 0:00:09]}  Qd1 {[%clk 0:00:11]} 47. Rf2 {[%clk 0:00:07]}  Ra1 {[%clk 0:00:11]} 48. Kg3 {[%clk 0:00:03]}  Qg1+ {[%clk 0:00:11]} 49. Rg2 {[%clk 0:00:03]}  Qe1+ {[%clk 0:00:11]} 50. Rf2 {[%clk 0:00:04]}  Qg1+ {[%clk 0:00:11]} 51. Kf3 {[%clk 0:00:04]}  Qh1+ {[%clk 0:00:10]} 52. Ke3 {[%clk 0:00:04]}  Qe1+ {[%clk 0:00:08]} 53. Re2 {[%clk 0:00:04]}  Qg1+ {[%clk 0:00:08]} 54. Kd2 {[%clk 0:00:03]}  Qc1+ {[%clk 0:00:07]} 55. Kc3 {[%clk 0:00:04]}  Ra3+ {[%clk 0:00:03]} 56. Kd4 {[%clk 0:00:04]}  Ra4+ {[%clk 0:00:02]} 57. c4 {[%clk 0:00:05]}  Qa1+ {[%clk 0:00:03]} 58. Nc3 {[%clk 0:00:05]}  Ra5 {[%clk 0:00:03]} 59. c8=Q {[%clk 0:00:05]}  Qg1+ {[%clk 0:00:04]} 60. Re3 {[%clk 0:00:05]}  Qh2 {[%clk 0:00:04]} 61. Qxf7+ {[%clk 0:00:06]}  Kxf7 {[%clk 0:00:04]} 62. Qe8+ {[%clk 0:00:06]}  Kg7 {[%clk 0:00:04]} 63. Re7+ {[%clk 0:00:07]} 1-0


[Site "https://www.chess.com"]

[Event "Titled Tuesday Blitz September 13 Early 2022"]
[White "Przybylski, Wojciech"]
[Black "Demchenko, Anton"]
[WhiteFideId "1117599"]
[BlackFideId "4160258"]
[WhiteElo "2493"]
[BlackElo "2873"]
[Result "0-1"]
[Round "01"]
[TimeControl "180+1"]
[Date "2022.09.13"]
[WhiteClock "0:00:12"]
[BlackClock "0:00:20"]

1. e4 {[%clk 0:02:59]}  e5 {[%clk 0:02:57]} 2. Nf3 {[%clk 0:02:53]}  Nc6 {[%clk 0:02:58]} 3. Bb5 {[%clk 0:02:51]}  a6 {[%clk 0:02:58]} 4. Ba4 {[%clk 0:02:51]}  Nge7 {[%clk 0:02:58]} 5. O-O {[%clk 0:02:50]}  Ng6 {[%clk 0:02:58]} 6. c3 {[%clk 0:02:48]}  d6 {[%clk 0:02:57]} 7. h3 {[%clk 0:02:47]}  Be7 {[%clk 0:02:52]} 8. d4 {[%clk 0:02:46]}  O-O {[%clk 0:02:52]} 9. Re1 {[%clk 0:02:45]}  b5 {[%clk 0:02:44]} 10. Bb3 {[%clk 0:02:43]}  exd4 {[%clk 0:02:43]} 11. cxd4 {[%clk 0:02:41]}  Na5 {[%clk 0:02:43]} 12. Bc2 {[%clk 0:02:40]}  c5 {[%clk 0:02:44]} 13. d5 {[%clk 0:02:39]}  Nc4 {[%clk 0:02:42]} 14. Nbd2 {[%clk 0:02:36]}  Nxd2 {[%clk 0:02:35]} 15. Bxd2 {[%clk 0:02:35]}  Bf6 {[%clk 0:02:36]} 16. Rb1 {[%clk 0:02:28]}  Re8 {[%clk 0:02:30]} 17. a4 {[%clk 0:02:24]}  Bd7 {[%clk 0:02:27]} 18. b3 {[%clk 0:02:15]}  h6 {[%clk 0:02:26]} 19. Nh2 {[%clk 0:02:05]}  Bg5 {[%clk 0:02:23]} 20. Bc3 {[%clk 0:01:54]}  b4 {[%clk 0:02:23]} 21. Bb2 {[%clk 0:01:53]}  Bf6 {[%clk 0:02:23]} 22. Ng4 {[%clk 0:01:43]}  Bxb2 {[%clk 0:02:22]} 23. Rxb2 {[%clk 0:01:42]}  Qg5 {[%clk 0:02:16]} 24. Qf3 {[%clk 0:01:26]}  h5 {[%clk 0:02:11]} 25. Ne3 {[%clk 0:01:23]}  Ne5 {[%clk 0:02:10]} 26. Qg3 {[%clk 0:01:12]}  Qxg3 {[%clk 0:02:11]} 27. fxg3 {[%clk 0:01:12]}  Rec8 {[%clk 0:02:10]} 28. Rbb1 {[%clk 0:00:52]}  a5 {[%clk 0:01:48]} 29. Nc4 {[%clk 0:00:45]}  Nxc4 {[%clk 0:01:45]} 30. bxc4 {[%clk 0:00:46]}  f6 {[%clk 0:01:43]} 31. Kf2 {[%clk 0:00:45]}  Re8 {[%clk 0:01:41]} 32. Kf3 {[%clk 0:00:44]}  Re5 {[%clk 0:01:42]} 33. Re3 {[%clk 0:00:43]}  Rf8 {[%clk 0:01:40]} 34. Ke2 {[%clk 0:00:27]}  f5 {[%clk 0:01:36]} 35. exf5 {[%clk 0:00:26]}  Bxf5 {[%clk 0:01:37]} 36. Rxe5 {[%clk 0:00:22]}  Bxc2 {[%clk 0:01:36]} 37. Rb2 {[%clk 0:00:17]}  Bxa4 {[%clk 0:01:14]} 38. Re6 {[%clk 0:00:17]}  Rd8 {[%clk 0:01:15]} 39. Kd3 {[%clk 0:00:16]}  Be8 {[%clk 0:01:13]} 40. Rbe2 {[%clk 0:00:16]}  Kf8 {[%clk 0:01:04]} 41. Rf2+ {[%clk 0:00:15]}  Bf7 {[%clk 0:01:00]} 42. Kc2 {[%clk 0:00:14]}  a4 {[%clk 0:01:00]} 43. Kb2 {[%clk 0:00:14]}  Rd7 {[%clk 0:00:58]} 44. Re3 {[%clk 0:00:13]}  Kg8 {[%clk 0:00:53]} 45. g4 {[%clk 0:00:14]}  hxg4 {[%clk 0:00:53]} 46. hxg4 {[%clk 0:00:14]}  a3+ {[%clk 0:00:50]} 47. Kb3 {[%clk 0:00:13]}  Ra7 {[%clk 0:00:51]} 48. Ref3 {[%clk 0:00:11]}  Re7 {[%clk 0:00:37]} 49. g5 {[%clk 0:00:11]}  Bh5 {[%clk 0:00:30]} 50. Rf8+ {[%clk 0:00:10]}  Kh7 {[%clk 0:00:31]} 51. Rd8 {[%clk 0:00:10]}  Bd1+ {[%clk 0:00:28]} 52. Ka2 {[%clk 0:00:10]}  Ra7 {[%clk 0:00:26]} 53. Rxd6 {[%clk 0:00:08]}  b3+ {[%clk 0:00:27]} 54. Ka1 {[%clk 0:00:08]}  b2+ {[%clk 0:00:25]} 55. Rxb2 {[%clk 0:00:08]}  axb2+ {[%clk 0:00:25]} 56. Kxb2 {[%clk 0:00:09]}  Be2 {[%clk 0:00:22]} 57. Kb3 {[%clk 0:00:08]}  Rb7+ {[%clk 0:00:20]} 58. Kc3 {[%clk 0:00:08]}  Rb4 {[%clk 0:00:21]} 59. Kd2 {[%clk 0:00:07]}  Bxc4 {[%clk 0:00:20]} 60. Rc6 {[%clk 0:00:07]}  Bxd5 {[%clk 0:00:18]} 61. Rxc5 {[%clk 0:00:07]}  Bxg2 {[%clk 0:00:18]} 62. Ke3 {[%clk 0:00:07]}  Kg6 {[%clk 0:00:16]} 63. Kf2 {[%clk 0:00:07]}  Be4 {[%clk 0:00:14]} 64. Kg3 {[%clk 0:00:08]}  Bf5 {[%clk 0:00:14]} 65. Ra5 {[%clk 0:00:08]}  Kxg5 {[%clk 0:00:14]} 66. Ra3 {[%clk 0:00:08]}  Rd4 {[%clk 0:00:13]} 67. Rb3 {[%clk 0:00:08]}  Rd3+ {[%clk 0:00:14]} 68. Rxd3 {[%clk 0:00:08]}  Bxd3 {[%clk 0:00:14]} 69. Kf3 {[%clk 0:00:09]}  Bf5 {[%clk 0:00:14]} 70. Kg3 {[%clk 0:00:09]}  Bg4 {[%clk 0:00:15]} 71. Kg2 {[%clk 0:00:10]}  Kf4 {[%clk 0:00:16]} 72. Kf2 {[%clk 0:00:10]}  g5 {[%clk 0:00:16]} 73. Kg2 {[%clk 0:00:10]}  Bf3+ {[%clk 0:00:17]} 74. Kh2 {[%clk 0:00:11]}  g4 {[%clk 0:00:18]} 75. Kg1 {[%clk 0:00:11]}  g3 {[%clk 0:00:18]} 76. Kf1 {[%clk 0:00:11]}  Kg4 {[%clk 0:00:19]} 77. Kg1 {[%clk 0:00:12]}  Kh3 {[%clk 0:00:19]} 78. Kf1 {[%clk 0:00:12]}  Kh2 {[%clk 0:00:20]} 0-1


[Site "https://www.chess.com"]

[Event "Titled Tuesday Blitz September 13 Early 2022"]
[White "Rustemov, Alexander"]
[Black "Tarhan, Adar"]
[WhiteFideId "4119002"]
[BlackFideId "34544712"]
[WhiteElo "2872"]
[BlackElo "1792"]
[Result "0-1"]
[Round "01"]
[TimeControl "180+1"]
[Date "2022.09.13"]
[WhiteClock "0:00:02"]
[BlackClock "0:00:04"]

1. d4 {[%clk 0:03:00]}  Nf6 {[%clk 0:02:58]} 2. c4 {[%clk 0:03:01]}  c6 {[%clk 0:02:57]} 3. Bf4 {[%clk 0:02:58]}  d5 {[%clk 0:02:57]} 4. e3 {[%clk 0:02:58]}  Bf5 {[%clk 0:02:56]} 5. Nc3 {[%clk 0:02:56]}  e6 {[%clk 0:02:56]} 6. Nf3 {[%clk 0:02:55]}  Bd6 {[%clk 0:02:55]} 7. Bg3 {[%clk 0:02:50]}  Bxg3 {[%clk 0:02:54]} 8. hxg3 {[%clk 0:02:49]}  Nbd7 {[%clk 0:02:54]} 9. Be2 {[%clk 0:02:46]}  dxc4 {[%clk 0:02:52]} 10. Bxc4 {[%clk 0:02:45]}  Qe7 {[%clk 0:02:52]} 11. O-O {[%clk 0:02:44]}  e5 {[%clk 0:02:51]} 12. d5 {[%clk 0:02:23]}  e4 {[%clk 0:02:48]} 13. dxc6 {[%clk 0:02:17]}  Nb6 {[%clk 0:02:39]} 14. Nd4 {[%clk 0:02:08]}  Bg4 {[%clk 0:02:34]} 15. Qb3 {[%clk 0:02:03]}  bxc6 {[%clk 0:02:31]} 16. Nxc6 {[%clk 0:01:52]}  Qc7 {[%clk 0:02:31]} 17. Bb5 {[%clk 0:01:38]}  O-O {[%clk 0:02:23]} 18. Nd4 {[%clk 0:01:36]}  h5 {[%clk 0:02:23]} 19. Rac1 {[%clk 0:01:35]}  Qe5 {[%clk 0:02:22]} 20. Nc6 {[%clk 0:01:33]}  Qg5 {[%clk 0:02:22]} 21. Qa3 {[%clk 0:01:19]}  h4 {[%clk 0:02:13]} 22. gxh4 {[%clk 0:01:16]}  Qxh4 {[%clk 0:02:14]} 23. Qd6 {[%clk 0:01:16]}  a6 {[%clk 0:01:52]} 24. Be2 {[%clk 0:01:13]}  Bxe2 {[%clk 0:01:48]} 25. Nxe2 {[%clk 0:01:13]}  Nbd5 {[%clk 0:01:45]} 26. Rfd1 {[%clk 0:01:07]}  Qh5 {[%clk 0:01:39]} 27. Nf4 {[%clk 0:01:04]}  Nxf4 {[%clk 0:01:37]} 28. Qxf4 {[%clk 0:01:04]}  Rfe8 {[%clk 0:01:31]} 29. b4 {[%clk 0:00:59]}  Re6 {[%clk 0:01:17]} 30. Nd4 {[%clk 0:00:58]}  Rb6 {[%clk 0:01:15]} 31. a3 {[%clk 0:00:56]}  Ng4 {[%clk 0:01:13]} 32. Nf5 {[%clk 0:00:39]}  Rf6 {[%clk 0:00:56]} 33. Rd5 {[%clk 0:00:39]}  g5 {[%clk 0:00:39]} 34. Ne7+ {[%clk 0:00:31]}  Kf8 {[%clk 0:00:39]} 35. Rxg5 {[%clk 0:00:29]}  Qh7 {[%clk 0:00:18]} 36. Rg8+ {[%clk 0:00:27]}  Qxg8 {[%clk 0:00:16]} 37. Nxg8 {[%clk 0:00:11]}  Rxf4 {[%clk 0:00:16]} 38. exf4 {[%clk 0:00:11]}  Kxg8 {[%clk 0:00:17]} 39. Rc5 {[%clk 0:00:10]}  Nf6 {[%clk 0:00:15]} 40. g4 {[%clk 0:00:08]}  Rd8 {[%clk 0:00:14]} 41. g5 {[%clk 0:00:08]}  Nd5 {[%clk 0:00:14]} 42. f5 {[%clk 0:00:07]}  Nf4 {[%clk 0:00:14]} 43. Kh2 {[%clk 0:00:07]}  Rd3 {[%clk 0:00:14]} 44. Ra5 {[%clk 0:00:06]}  Rh3+ {[%clk 0:00:13]} 45. Kg1 {[%clk 0:00:07]}  Rh5 {[%clk 0:00:12]} 46. Rxa6 {[%clk 0:00:05]}  Rxg5+ {[%clk 0:00:12]} 47. Kf1 {[%clk 0:00:06]}  Rxf5 {[%clk 0:00:10]} 48. a4 {[%clk 0:00:06]}  Nd3 {[%clk 0:00:10]} 49. Ke2 {[%clk 0:00:07]}  Rxf2+ {[%clk 0:00:10]} 50. Ke3 {[%clk 0:00:07]}  Rb2 {[%clk 0:00:10]} 51. Kxe4 {[%clk 0:00:07]}  Nxb4 {[%clk 0:00:09]} 52. Ra8+ {[%clk 0:00:07]}  Kg7 {[%clk 0:00:09]} 53. a5 {[%clk 0:00:08]}  Ra2 {[%clk 0:00:09]} 54. Kf3 {[%clk 0:00:05]}  Nc6 {[%clk 0:00:09]} 55. a6 {[%clk 0:00:06]}  Nb4 {[%clk 0:00:09]} 56. a7 {[%clk 0:00:06]}  Nc6 {[%clk 0:00:09]} 57. Rc8 {[%clk 0:00:06]}  Nxa7 {[%clk 0:00:09]} 58. Rc4 {[%clk 0:00:07]}  Nb5 {[%clk 0:00:09]} 59. Rg4+ {[%clk 0:00:07]}  Kf8 {[%clk 0:00:09]} 60. Rb4 {[%clk 0:00:08]}  Nd6 {[%clk 0:00:09]} 61. Rb6 {[%clk 0:00:08]}  Ke7 {[%clk 0:00:09]} 62. Kf4 {[%clk 0:00:08]}  Ra4+ {[%clk 0:00:09]} 63. Kf3 {[%clk 0:00:08]}  Ra3+ {[%clk 0:00:08]} 64. Kf4 {[%clk 0:00:08]}  Ke6 {[%clk 0:00:08]} 65. Rb8 {[%clk 0:00:08]}  Rh3 {[%clk 0:00:05]} 66. Rb6 {[%clk 0:00:08]}  Rh4+ {[%clk 0:00:05]} 67. Kf3 {[%clk 0:00:08]}  Kd5 {[%clk 0:00:05]} 68. Ra6 {[%clk 0:00:08]}  f5 {[%clk 0:00:05]} 69. Ra5+ {[%clk 0:00:09]}  Ke6 {[%clk 0:00:06]} 70. Ra6 {[%clk 0:00:10]}  Rd4 {[%clk 0:00:05]} 71. Rb6 {[%clk 0:00:09]}  Ke5 {[%clk 0:00:05]} 72. Ra6 {[%clk 0:00:09]}  Rd5 {[%clk 0:00:05]} 73. Ra8 {[%clk 0:00:09]}  Rd3+ {[%clk 0:00:06]} 74. Ke2 {[%clk 0:00:09]}  Rh3 {[%clk 0:00:06]} 75. Kf2 {[%clk 0:00:09]}  Ne4+ {[%clk 0:00:06]} 76. Kg2 {[%clk 0:00:09]}  Rd3 {[%clk 0:00:06]} 77. Ra1 {[%clk 0:00:09]}  f4 {[%clk 0:00:05]} 78. Ra8 {[%clk 0:00:08]}  Kd4 {[%clk 0:00:05]} 79. Ra1 {[%clk 0:00:07]}  Rd2+ {[%clk 0:00:04]} 80. Kf3 {[%clk 0:00:06]}  Rf2+ {[%clk 0:00:04]} 81. Kg4 {[%clk 0:00:07]}  Kd3 {[%clk 0:00:02]} 82. Ra3+ {[%clk 0:00:06]}  Nc3 {[%clk 0:00:03]} 83. Ra8 {[%clk 0:00:05]}  f3 {[%clk 0:00:03]} 84. Rf8 {[%clk 0:00:05]}  Ke3 {[%clk 0:00:03]} 85. Ra8 {[%clk 0:00:04]}  Ne4 {[%clk 0:00:04]} 86. Ra3+ {[%clk 0:00:03]}  Ke2 {[%clk 0:00:04]} 87. Kf4 {[%clk 0:00:03]}  Nd2 {[%clk 0:00:04]} 88. Re3+ {[%clk 0:00:03]}  Kf1 {[%clk 0:00:04]} 89. Re8 {[%clk 0:00:03]}  Re2 {[%clk 0:00:04]} 90. Rh8 {[%clk 0:00:02]}  f2 {[%clk 0:00:04]} 0-1


[Site "https://www.chess.com"]